[Event "Schack-SM 2023: Mastarklassen-elit"]
[Site "Helsingborg Arena, Mellersta Stenbocksgatan 14, Helsingborg, Sweden"]
[Date "2023.07.05"]
[Round "5.4"]
[White "Thorn, Eric"]
[Black "Lindberg, Bengt"]
[Result "1/2-1/2"]
[TimeControl "90 minutes for 40 moves + 30 minutes for the rest of games + 30 seconds per move from move one."]
[WhiteTitle "FM"]
[BlackTitle "IM"]
[WhiteElo "2379"]
[BlackElo "2353"]

1. d4 {[%clk 01:30:58]} {[%emt 00:00:02]} Nf6 {[%clk 01:30:54]} {[%emt
00:00:06]} 2. c4 {[%clk 01:31:22]} {[%emt 00:00:07]} e6 {[%clk 01:31:20]}
{[%emt 00:00:03]} 3. Nf3 {[%clk 01:31:47]} {[%emt 00:00:05]} Bb4+ {[%clk
01:31:45]} {[%emt 00:00:06]} 4. Nbd2 {[%clk 01:32:01]} {[%emt 00:00:17]} b6
{[%clk 01:32:03]} {[%emt 00:00:11]} 5. g3 {[%clk 01:28:01]} {[%emt 00:04:30]}
Bb7 {[%clk 01:32:22]} {[%emt 00:00:09]} 6. Bg2 {[%clk 01:28:24]} {[%emt
00:00:09]} O-O {[%clk 01:32:24]} {[%emt 00:00:27]} 7. O-O {[%clk 01:28:24]}
{[%emt 00:00:31]} a5 {[%clk 01:32:32]} {[%emt 00:00:21]} 8. Qc2 {[%clk
01:26:01]} {[%emt 00:02:55]} Bxd2 {[%clk 01:32:32]} {[%emt 00:00:29]} 9. Bxd2
{[%clk 01:25:29]} {[%emt 00:01:03]} Be4 {[%clk 01:31:22]} {[%emt 00:01:37]} 10.
Qc1 {[%clk 01:22:12]} {[%emt 00:03:48]} Nc6 {[%clk 01:21:35]} {[%emt 00:10:16]}
11. Bc3 {[%clk 01:16:23]} {[%emt 00:06:20]} Ne7 {[%clk 01:15:15]} {[%emt
00:06:48]} 12. d5 {[%clk 01:04:45]} {[%emt 00:12:12]} exd5 {[%clk 01:15:10]}
{[%emt 00:00:34]} 13. Bxf6 {[%clk 01:05:11]} {[%emt 00:00:05]} gxf6 {[%clk
01:15:33]} {[%emt 00:00:05]} 14. cxd5 {[%clk 01:05:36]} {[%emt 00:00:06]} Bxd5
{[%clk 01:04:59]} {[%emt 00:11:03]} 15. Rd1 {[%clk 01:05:02]} {[%emt 00:01:04]}
c6 {[%clk 01:02:40]} {[%emt 00:02:48]} 16. Qh6 {[%clk 01:00:59]} {[%emt
00:04:34]} Nf5 {[%clk 01:01:25]} {[%emt 00:01:45]} 17. Qf4 {[%clk 00:59:06]}
{[%emt 00:02:22]} Ng7 {[%clk 00:57:38]} {[%emt 00:04:17]} 18. e4 {[%clk
00:46:13]} {[%emt 00:13:24]} Be6 {[%clk 00:56:52]} {[%emt 00:01:16]} 19. Qh6
{[%clk 00:34:12]} {[%emt 00:12:31]} a4 {[%clk 00:40:25]} {[%emt 00:16:57]} 20.
Rd4 {[%clk 00:31:53]} {[%emt 00:02:49]} Ra5 {[%clk 00:38:26]} {[%emt 00:02:29]}
21. Rad1 {[%clk 00:23:13]} {[%emt 00:09:09]} Re8 {[%clk 00:33:59]} {[%emt
00:04:57]} 22. Bf1 {[%clk 00:12:58]} {[%emt 00:10:47]} Rh5 {[%clk 00:30:52]}
{[%emt 00:03:36]} 23. Qf4 {[%clk 00:12:07]} {[%emt 00:01:21]} b5 {[%clk
00:28:30]} {[%emt 00:02:51]} 24. b4 {[%clk 00:07:35]} {[%emt 00:05:04]} axb3
{[%clk 00:19:23]} {[%emt 00:09:36]} 25. axb3 {[%clk 00:07:59]} {[%emt
00:00:07]} Rc5 {[%clk 00:14:56]} {[%emt 00:04:56]} 26. R4d3 {[%clk 00:05:25]}
{[%emt 00:03:04]} f5 {[%clk 00:13:33]} {[%emt 00:01:54]} 27. e5 {[%clk
00:04:48]} {[%emt 00:01:06]} f6 {[%clk 00:13:22]} {[%emt 00:00:40]} 28. Qh6
{[%clk 00:03:29]} {[%emt 00:01:50]} Rxe5 {[%clk 00:11:50]} {[%emt 00:02:02]} 29.
Nxe5 fxe5 {[%clk 00:12:18]} 30. Bg2 {[%clk 00:02:06]} {[%emt 00:01:30]} Qe7
{[%clk 00:09:30]} {[%emt 00:03:18]} 31. g4 {[%clk 00:00:48]} {[%emt 00:01:49]}
fxg4 {[%clk 00:06:50]} {[%emt 00:03:09]} 32. Be4 {[%clk 00:01:16]} {[%emt
00:00:01]} Nf5 {[%clk 00:07:07]} {[%emt 00:00:14]} 33. Qh5 {[%clk 00:00:48]}
{[%emt 00:00:57]} Rf8 {[%clk 00:07:25]} {[%emt 00:00:12]} 34. h3 {[%clk
00:00:35]} {[%emt 00:00:45]} d5 {[%clk 00:03:58]} {[%emt 00:03:55]} 35. Bg2
{[%clk 00:00:48]} {[%emt 00:00:17]} e4 {[%clk 00:02:41]} {[%emt 00:01:48]} 36.
Rc3 {[%clk 00:00:40]} {[%emt 00:00:39]} gxh3 {[%clk 00:02:51]} {[%emt
00:00:20]} 37. Rxh3 {[%clk 00:00:37]} {[%emt 00:00:32]} Kh8 {[%clk 00:02:36]}
{[%emt 00:00:44]} 38. Rc1 {[%clk 00:00:35]} {[%emt 00:00:33]} Bd7 {[%clk
00:02:39]} {[%emt 00:00:25]} 39. Kh1 {[%clk 00:00:38]} {[%emt 00:00:28]} Rg8
{[%clk 00:02:14]} {[%emt 00:00:54]} 40. Ra1 {[%clk 00:00:35]} {[%emt 00:00:35]}
Qg7 {[%clk 00:00:51]} {[%emt 00:01:51]} 41. Rg1 {[%clk 00:30:14]} {[%emt
00:00:51]} e3 {[%clk 00:23:34]} {[%emt 00:07:46]} 42. fxe3 {[%clk 00:21:57]}
{[%emt 00:08:48]} Ng3+ {[%clk 00:21:55]} {[%emt 00:02:09]} 43. Rxg3 {[%clk
00:22:22]} {[%emt 00:00:06]} Qxg3 {[%clk 00:22:20]} {[%emt 00:00:04]} 44. Qh6
{[%clk 00:22:49]} {[%emt 00:00:03]} Qg5 {[%clk 00:16:25]} {[%emt 00:06:24]} 45.
Qxg5 {[%clk 00:21:51]} {[%emt 00:01:29]} Rxg5 {[%clk 00:16:53]} {[%emt
00:00:01]} 46. Ra1 {[%clk 00:22:15]} {[%emt 00:00:07]} Re5 {[%clk 00:15:20]}
{[%emt 00:02:02]} 47. Ra7 {[%clk 00:19:28]} {[%emt 00:03:18]} Be8 {[%clk
00:14:26]} {[%emt 00:01:24]} 48. Kg1 {[%clk 00:18:11]} {[%emt 00:01:48]} Rxe3
{[%clk 00:13:16]} {[%emt 00:01:40]} 49. Kf2 {[%clk 00:18:37]} {[%emt 00:00:03]}
Re5 {[%clk 00:11:21]} {[%emt 00:02:24]} 50. b4 {[%clk 00:18:57]} {[%emt
00:00:12]} Bg6 {[%clk 00:09:06]} {[%emt 00:02:43]} 51. Rc7 {[%clk 00:18:47]}
{[%emt 00:00:42]} Bd3 {[%clk 00:08:33]} {[%emt 00:01:03]} 52. Rxc6 {[%clk
00:18:50]} {[%emt 00:00:27]} Bc4 {[%clk 00:08:58]} {[%emt 00:00:05]} 53. Rc7
{[%clk 00:17:44]} {[%emt 00:01:37]} Kg8 {[%clk 00:05:48]} {[%emt 00:03:39]} 54.
Kf3 {[%clk 00:16:37]} {[%emt 00:01:36]} d4 {[%clk 00:05:22]} {[%emt 00:00:57]}
55. Kf4 {[%clk 00:16:35]} {[%emt 00:00:32]} Re2 {[%clk 00:05:16]} {[%emt
00:00:35]} 56. Be4 {[%clk 00:15:57]} {[%emt 00:01:10]} h6 {[%clk 00:04:50]}
{[%emt 00:00:55]} 57. Rd7 {[%clk 00:16:12]} {[%emt 00:00:15]} Rd2 {[%clk
00:01:26]} {[%emt 00:03:55]} 58. Ke5 {[%clk 00:16:37]} {[%emt 00:00:04]} Kf8
{[%clk 00:01:31]} {[%emt 00:00:24]} 59. Kf6 {[%clk 00:15:03]} {[%emt 00:02:05]}
Rf2+ {[%clk 00:02:00]} {[%emt 00:00:01]} 60. Bf5 {[%clk 00:14:41]} {[%emt
00:00:52]} Ke8 {[%clk 00:01:08]} {[%emt 00:01:23]} 61. Re7+ {[%clk 00:10:41]}
{[%emt 00:04:29]} Kd8 {[%clk 00:01:05]} {[%emt 00:00:32]} 62. Rd7+ {[%clk
00:11:07]} {[%emt 00:00:05]} Kc8 {[%clk 00:01:14]} {[%emt 00:00:19]} 63. Rxd4+
{[%clk 00:11:32]} {[%emt 00:00:05]} Kc7 {[%clk 00:01:39]} {[%emt 00:00:05]} 64.
Ke5 {[%clk 00:10:42]} {[%emt 00:01:21]} Re2+ {[%clk 00:01:55]} {[%emt
00:00:13]} 65. Kf6 {[%clk 00:07:50]} {[%emt 00:03:24]} h5 {[%clk 00:01:59]}
{[%emt 00:00:25]} 66. Rh4 {[%clk 00:06:08]} {[%emt 00:02:13]} Rb2 {[%clk
00:02:16]} {[%emt 00:00:11]} 67. Rxh5 {[%clk 00:03:49]} {[%emt 00:02:49]} Rxb4
{[%clk 00:02:40]} {[%emt 00:00:06]} 68. Ke5 {[%clk 00:02:53]} {[%emt 00:01:26]}
Kb6 {[%clk 00:02:28]} {[%emt 00:00:42]} 69. Rh8 {[%clk 00:02:37]} {[%emt
00:00:47]} Rb2 {[%clk 00:02:42]} {[%emt 00:00:15]} 70. Kd4 {[%clk 00:02:30]}
{[%emt 00:00:37]} Rd2+ {[%clk 00:02:20]} {[%emt 00:00:52]} 71. Kc3 {[%clk
00:02:47]} {[%emt 00:00:14]} Rf2 {[%clk 00:02:43]} {[%emt 00:00:07]} 72. Be4
{[%clk 00:02:17]} {[%emt 00:01:01]} Rf4 {[%clk 00:03:02]} {[%emt 00:00:08]} 73.
Rb8+ {[%clk 00:00:55]} {[%emt 00:01:53]} Ka7 {[%clk 00:03:03]} {[%emt
00:00:28]} 74. Ra8+ {[%clk 00:01:23]} {[%emt 00:00:05]} Kb6 {[%clk 00:03:28]}
{[%emt 00:00:05]} 75. Rb8+ {[%clk 00:01:50]} {[%emt 00:00:02]} Kc7 {[%clk
00:03:50]} {[%emt 00:00:08]} 76. Rb7+ {[%clk 00:02:17]} {[%emt 00:00:03]} Kd6
{[%clk 00:04:15]} {[%emt 00:00:04]} 77. Rb6+ {[%clk 00:00:55]} {[%emt
00:01:53]} Ke5 {[%clk 00:04:41]} {[%emt 00:00:03]} 78. Bc6 {[%clk 00:00:57]}
{[%emt 00:00:28]} Rf6 {[%clk 00:04:53]} {[%emt 00:00:17]} 79. Bxb5 {[%clk
00:00:51]} {[%emt 00:00:39]} Rxb6 {[%clk 00:05:21]} {[%emt 00:00:02]} 80. Bxc4
{[%clk 00:01:16]} {[%emt 00:00:06]} Rh6 {[%clk 00:05:37]} {[%emt 00:00:12]} 81.
Bf1 {[%clk 00:00:58]} {[%emt 00:00:48]} Kd5 {[%clk 00:06:03]} {[%emt 00:00:03]}
82. Bc4+ {[%clk 00:00:48]} {[%emt 00:00:40]} Kc5 {[%clk 00:06:31]} {[%emt
00:00:03]} 83. Bf1 {[%clk 00:01:14]} {[%emt 00:00:03]} Rd6 {[%clk 00:04:10]}
{[%emt 00:02:51]} 84. Be2 {[%clk 00:01:29]} {[%emt 00:00:14]} Rd4 {[%clk
00:04:21]} {[%emt 00:00:19]} 85. Bd3 {[%clk 00:01:32]} {[%emt 00:00:27]} Ra4
{[%clk 00:04:25]} {[%emt 00:00:26]} 86. Kb3 {[%clk 00:01:30]} {[%emt 00:00:33]}
Rh4 {[%clk 00:04:44]} {[%emt 00:00:09]} 87. Bf5 {[%clk 00:01:24]} {[%emt
00:00:37]} Rf4 {[%clk 00:05:03]} {[%emt 00:00:12]} 88. Bg6 {[%clk 00:01:26]}
{[%emt 00:00:28]} Rb4+ {[%clk 00:05:03]} {[%emt 00:00:30]} 89. Kc3 {[%clk
00:01:38]} {[%emt 00:00:17]} Rg4 {[%clk 00:05:27]} {[%emt 00:00:06]} 90. Bf5
{[%clk 00:01:34]} {[%emt 00:00:34]} Rg3+ {[%clk 00:05:53]} {[%emt 00:00:06]} 91.
Bd3 {[%clk 00:01:45]} {[%emt 00:00:19]} Rh3 {[%clk 00:06:03]} {[%emt 00:00:20]}
92. Kc2 {[%clk 00:01:57]} {[%emt 00:00:18]} Kd4 {[%clk 00:06:28]} {[%emt
00:00:05]} 93. Bg6 {[%clk 00:02:11]} {[%emt 00:00:14]} Rc3+ {[%clk 00:06:50]}
{[%emt 00:00:10]} 94. Kb2 {[%clk 00:02:31]} {[%emt 00:00:09]} Kc4 {[%clk
00:07:12]} {[%emt 00:00:09]} 95. Bf5 {[%clk 00:02:10]} {[%emt 00:00:50]} Kb4
{[%clk 00:07:37]} {[%emt 00:00:06]} 96. Bg6 {[%clk 00:02:11]} {[%emt 00:00:29]}
Rg3 {[%clk 00:08:01]} {[%emt 00:00:05]} 97. Be4 {[%clk 00:02:26]} {[%emt
00:00:15]} Re3 {[%clk 00:08:29]} {[%emt 00:00:02]} 98. Bg6 {[%clk 00:02:37]}
{[%emt 00:00:19]} Re2+ {[%clk 00:08:55]} {[%emt 00:00:05]} 99. Ka1 {[%clk
00:01:31]} {[%emt 00:01:35]} Kb3 {[%clk 00:08:50]} {[%emt 00:00:34]} 100. Bf7+
{[%clk 00:01:50]} {[%emt 00:00:13]} Ka3 {[%clk 00:09:06]} {[%emt 00:00:14]} 101.
Bg6 {[%clk 00:02:15]} {[%emt 00:00:04]} Ra2+ {[%clk 00:08:50]} {[%emt
00:00:45]} 102. Kb1 {[%clk 00:02:40]} {[%emt 00:00:07]} Rg2 {[%clk 00:09:11]}
{[%emt 00:00:09]} 103. Bf7 {[%clk 00:02:53]} {[%emt 00:00:16]} Rg7 {[%clk
00:08:58]} {[%emt 00:00:44]} 104. Be6 {[%clk 00:03:15]} {[%emt 00:00:09]} Re7
{[%clk 00:07:35]} {[%emt 00:01:53]} 105. Bd5 {[%clk 00:03:12]} {[%emt
00:00:33]} Re5 {[%clk 00:06:41]} {[%emt 00:01:23]} 106. Bf7 {[%clk 00:03:30]}
{[%emt 00:00:12]} Re2 {[%clk 00:06:27]} {[%emt 00:00:43]} 107. Bg6 {[%clk
00:03:00]} {[%emt 00:01:00]} Rf2 {[%clk 00:06:15]} {[%emt 00:00:43]} 108. Ka1
{[%clk 00:02:13]} {[%emt 00:01:18]} Ra2+ {[%clk 00:06:17]} {[%emt 00:00:28]}
109. Kb1 {[%clk 00:02:38]} {[%emt 00:00:04]} Rg2 {[%clk 00:06:38]} {[%emt
00:00:08]} 110. Bf5 {[%clk 00:03:01]} {[%emt 00:00:08]} Kb3 {[%clk 00:06:23]}
{[%emt 00:00:44]} 111. Be6+ {[%clk 00:03:20]} {[%emt 00:00:13]} Kc3 {[%clk
00:06:51]} {[%emt 00:00:02]} 112. Bf7 {[%clk 00:03:03]} {[%emt 00:00:46]} Rb2+
{[%clk 00:05:34]} {[%emt 00:01:47]} 113. Ka1 {[%clk 00:03:19]} {[%emt
00:00:14]} Kc2 {[%clk 00:05:38]} {[%emt 00:00:27]} 114. Bg6+ {[%clk 00:03:36]}
{[%emt 00:00:12]} Kc1 {[%clk 00:06:05]} {[%emt 00:00:05]} 115. Bf7 {[%clk
00:04:00]} {[%emt 00:00:05]} Rb7 {[%clk 00:06:03]} {[%emt 00:00:31]} 116. Be6
{[%clk 00:04:17]} {[%emt 00:00:13]} Rb6 {[%clk 00:05:41]} {[%emt 00:00:53]} 117.
Bf7 {[%clk 00:04:38]} {[%emt 00:00:07]} Rb7 {[%clk 00:06:02]} {[%emt 00:00:10]}
118. Be6 {[%clk 00:05:03]} {[%emt 00:00:05]} Ra7+ {[%clk 00:06:20]} {[%emt
00:00:11]} 1/2-1/2

[Event "Schack-SM 2023: Veteran-SM 65+"]
[Site "Helsingborg Arena, Mellersta Stenbocksgatan 14, Helsingborg, Sweden"]
[Date "2023.07.05"]
[Round "5.5"]
[White "Carlsson, Ingvar"]
[Black "Olsson, Thomas"]
[Result "1-0"]
[TimeControl "90 minutes for 40 moves + 30 minutes for the rest of games + 30 seconds per move from move one."]
[WhiteElo "1998"]
[BlackElo "1874"]

1. e4 {[%clk 01:30:55]} {[%emt 00:00:02]} e5 {[%clk 01:30:31]} {[%emt
00:00:30]} 2. Nf3 {[%clk 01:31:15]} {[%emt 00:00:10]} Nc6 {[%clk 01:30:45]}
{[%emt 00:00:17]} 3. Bc4 {[%clk 01:31:34]} {[%emt 00:00:10]} Nf6 {[%clk
01:29:25]} {[%emt 00:01:51]} 4. Ng5 {[%clk 01:30:50]} {[%emt 00:01:13]} d5
{[%clk 01:29:39]} {[%emt 00:00:15]} 5. exd5 {[%clk 01:31:13]} {[%emt 00:00:08]}
Na5 {[%clk 01:29:54]} {[%emt 00:00:15]} 6. Bb5+ {[%clk 01:31:35]} {[%emt
00:00:08]} c6 {[%clk 01:30:14]} {[%emt 00:00:11]} 7. dxc6 {[%clk 01:32:00]}
{[%emt 00:00:05]} bxc6 {[%clk 01:30:33]} {[%emt 00:00:10]} 8. Be2 {[%clk
01:32:21]} {[%emt 00:00:09]} h6 {[%clk 01:30:11]} {[%emt 00:00:52]} 9. Nh3
{[%clk 01:32:34]} {[%emt 00:00:17]} g5 {[%clk 01:29:48]} {[%emt 00:00:53]} 10.
d3 {[%clk 01:32:45]} {[%emt 00:00:19]} Bg7 {[%clk 01:29:16]} {[%emt 00:01:02]}
11. Nc3 {[%clk 01:29:35]} {[%emt 00:03:40]} O-O {[%clk 01:20:11]} {[%emt
00:09:36]} 12. Ng1 {[%clk 01:23:28]} {[%emt 00:06:37]} Nb7 {[%clk 01:18:43]}
{[%emt 00:01:58]} 13. g4 {[%clk 01:20:53]} {[%emt 00:03:04]} Nc5 {[%clk
00:46:58]} {[%emt 00:32:15]} 14. h4 {[%clk 01:18:24]} {[%emt 00:02:59]} Ne6
{[%clk 00:45:44]} {[%emt 00:01:44]} 15. hxg5 {[%clk 01:16:50]} {[%emt
00:02:05]} hxg5 {[%clk 00:45:52]} {[%emt 00:00:22]} 16. Nh3 {[%clk 01:08:41]}
{[%emt 00:08:39]} Nd5 {[%clk 00:44:42]} {[%emt 00:01:40]} 17. Ne4 {[%clk
01:07:28]} {[%emt 00:01:43]} f6 {[%clk 00:43:40]} {[%emt 00:01:32]} 18. Bd2
{[%clk 00:59:36]} {[%emt 00:08:21]} Rb8 {[%clk 00:33:24]} {[%emt 00:10:48]} 19.
b3 {[%clk 00:58:53]} {[%emt 00:01:13]} Bd7 {[%clk 00:30:53]} {[%emt 00:03:00]}
20. Qc1 {[%clk 00:50:23]} {[%emt 00:09:00]} Ndf4 {[%clk 00:24:46]} {[%emt
00:06:37]} 21. Nxf4 {[%clk 00:47:58]} {[%emt 00:02:56]} exf4 {[%clk 00:22:46]}
{[%emt 00:02:27]} 22. Bc3 {[%clk 00:46:33]} {[%emt 00:01:56]} Be8 {[%clk
00:20:45]} {[%emt 00:02:31]} 23. Qb2 {[%clk 00:46:28]} {[%emt 00:00:36]} Qe7
{[%clk 00:18:08]} {[%emt 00:03:07]} 24. O-O-O {[%clk 00:46:17]} {[%emt
00:00:40]} Bg6 {[%clk 00:18:14]} {[%emt 00:00:24]} 25. Bf3 {[%clk 00:44:41]}
{[%emt 00:02:06]} c5 {[%clk 00:17:26]} {[%emt 00:01:19]} 26. Rde1 {[%clk
00:42:11]} {[%emt 00:03:00]} Qd8 {[%clk 00:13:57]} {[%emt 00:03:59]} 27. Nxf6+
Rxf6 {[%clk 00:11:14]} 28. Rxe6 {[%clk 00:22:06]} {[%emt 00:00:23]} Rxe6 {[%clk
00:10:59]} {[%emt 00:00:44]} 29. Bxg7 {[%clk 00:22:14]} {[%emt 00:00:22]} Bh7
{[%clk 00:06:43]} {[%emt 00:04:46]} 30. Be4 {[%clk 00:21:09]} {[%emt 00:01:35]}
Rxe4 {[%clk 00:05:16]} {[%emt 00:01:57]} 31. dxe4 {[%clk 00:21:17]} {[%emt
00:00:22]} Rb6 {[%clk 00:05:23]} {[%emt 00:00:24]} 32. Bh8 {[%clk 00:18:09]}
{[%emt 00:03:37]} Qe7 {[%clk 00:05:09]} {[%emt 00:00:44]} 33. Rd1 {[%clk
00:13:22]} {[%emt 00:05:17]} Bg6 {[%clk 00:03:41]} {[%emt 00:01:58]} 34. Rd8+
{[%clk 00:12:36]} {[%emt 00:01:16]} Kh7 {[%clk 00:03:50]} {[%emt 00:00:21]} 35.
f3 {[%clk 00:11:06]} {[%emt 00:02:00]} c4 {[%clk 00:03:28]} {[%emt 00:00:52]}
36. Qd4 {[%clk 00:10:27]} {[%emt 00:01:08]} Rb7 {[%clk 00:02:35]} {[%emt
00:01:25]} 37. Bf6 {[%clk 00:10:01]} {[%emt 00:00:56]} 1-0